[Event "Polish University-ch Open 2024"]
[Site "Lublin"]
[Date "2024.02.23"]
[Round "3.9"]
[White "Szustakowski, Antoni"]
[Black "Panek, Bartosz"]
[Result "1-0"]
[ECO "D42"]
[WhiteElo "2354"]
[BlackElo "2207"]
[Annotator "TA"]
[PlyCount "63"]
[EventDate "2024.02.22"]
[EventType "swiss"]
[EventCountry "POL"]
[SourceTitle "playchess.com"]
[Source "ChessBase"]
[SourceQuality "1"]
[TimeControl "600+3"]

{[%evp 21,63,-14,40,34,58,0,0,0,0,0,-20,-19,0,0,11,23,22,0,0,0,0,0,403,414,515,524,512,475,591,608,659,617,29986,1094,1627,1534,1377,972,1323,1258,29992,29993,29995,29996]} 1. Nf3 {[%emt 0:00:03]} Nf6 {[%emt 0:00:02]} 2. c4 {[%emt 0:00:04]} e6 {[%emt 0:10:07]} 3. d4 {[%emt 0:00:11]} d5 {[%emt 0:00:00]} 4. Nc3 {[%emt 0:00:02]} c5 {[%emt 0:00:00]} 5. cxd5 {[%emt 0:00:16]} Nxd5 {[%emt 0:00:00]} 6. e3 {[%emt 0:00:02]} Nc6 {[%emt 0:00:00]} 7. Bd3 {[%emt 0:00:07]} cxd4 {[%emt 0:00:00]} 8. exd4 {[%emt 0:00:02]} Be7 {[%emt 0:00:00]} 9. O-O {[%emt 0:00:04]} O-O {[%emt 0:00:00]} 10. Re1 {[%emt 0:00:50]} Bf6 {[%emt 0:00:00]} 11. Ne4 {[%emt 0:01:27]} Be7 {[%emt 0:00:00]} (11... Bxd4 $11 12. Nxd4 Nxd4) 12. a3 $14 {[%emt 0:02:38]} b6 {[%emt 0:00:00]} 13. Bd2 {[%emt 0:00:34]} (13. Bb1 $14) 13... Bb7 $11 {[%emt 0:00:00]} 14. Rc1 {[%emt 0:00:01] The position is equal.} Rc8 {[%emt 0:00:00]} 15. Bb1 {[%emt 0:00:13]} Nf6 {[%emt 0:00:00]} 16. Bc3 {[%emt 0:00:53]} Ba8 {[%emt 0:00:00]} 17. Qd3 {[%emt 0:01:02] Threatening mate with Nxf6+.} Nxe4 {[%emt 0:00:00]} 18. Qxe4 {[%emt 0:00:02][%csl Gb1][%cal Re4h7]} g6 {[%emt 0:00:00][%cal Oc6b4] [#]} 19. d5 $1 $40 {[%emt 0:00:37][%mdl 128] White mounts an attack.} exd5 {[%emt 0:00:00]} (19... Qxd5 20. Qe3) 20. Qf4 {[%emt 0:00:15]} d4 {[%emt 0:00:00]} 21. Rcd1 {[%emt 0:00:26][%cal Rf3d4]} Bd6 $2 {[%emt 0:00:00][%mdl 8192] [#]} (21... Qd6 $11 {and Black has nothing to worry.} 22. Qxd6 Bxd6 23. Nxd4 Nxd4 24. Bxd4 h5) 22. Qh6 $1 $18 {[%emt 0:00:01]} f6 {[%emt 0:00:49] Repels Ng5} 23. Nxd4 {[%emt 0:00:25]} Nxd4 {[%emt 0:00:09]} 24. Rxd4 {[%emt 0:00:01]} Qc7 {[%emt 0:00:00]} 25. Red1 {[%emt 0:00:26]} Bxh2+ {[%emt 0:00:02]} 26. Qxh2 {[%emt 0:00:05]} Qc6 {[%emt 0:00:02]} 27. Be4 {[%emt 0:00:03]} (27. Ba2+ $142 Kh8 28. Rd7 Qxg2+ 29. Qxg2 Bxg2 30. Kxg2 h5 31. Rxa7 Ra8 32. Rxa8 (32. Bxf6+ Rxf6 33. Rxa8+ Kg7 $18)) 27... Qe6 {[%emt 0:00:02]} 28. Bxa8 {[%emt 0:00:01]} Rxa8 {[%emt 0:00:01]} 29. Rd6 {[%emt 0:00:04]} Qf5 {[%emt 0:00:03]} 30. Rd7 {[%emt 0:00:02]} Rf7 {[%emt 0:00:07]} 31. Rxf7 {[%emt 0:00:02]} Kxf7 {[%emt 0:00:01]} 32. Qxh7+ {[%emt 0:00:01] Weighted Error Value: White=0.09 (flawless) /Black=1.15.  Loses game:     	---       	Black=1      Mistake:       	White=1     	---        OK:         	White=6     	Black=5      Best:        	---       	Black=1      Strong:       	White=1     	---} 1-0

[Event "Polish University-ch Open 2024"]
[Site "Lublin"]
[Date "2024.02.23"]
[Round "3.10"]
[White "Nowak, Mikolaj"]
[Black "Drozdowski, Konrad"]
[Result "1-0"]
[ECO "D30"]
[WhiteElo "2317"]
[BlackElo "2117"]
[Annotator "TA"]
[PlyCount "55"]
[EventDate "2024.02.22"]
[EventType "swiss"]
[EventCountry "POL"]
[SourceTitle "playchess.com"]
[Source "ChessBase"]
[SourceQuality "1"]
[TimeControl "600+3"]

{[%evp 9,55,38,17,20,17,35,114,28,67,3,26,31,67,0,12,12,45,42,35,39,32,27,34,29,116,93,146,135,141,133,180,132,177,162,358,234,255,131,128,131,283,239,516,76,700,689,867,856]} 1. d4 {[%emt 0:00:01]} d5 {[%emt 0:00:01]} 2. c4 {[%emt 0:00:02]} e6 {[%emt 0:00:01]} 3. Nf3 {[%emt 0:00:01]} a6 {[%emt 0:00:01]} 4. Nbd2 {[%emt 0:00:23][%cal Bb1d2,Bd2c4,Bc4e5][%mdl 32]} dxc4 {[%emt 0:00:26]} 5. Nxc4 {[%emt 0:00:04]} b5 {[%emt 0:00:32]} 6. Nce5 {[%emt 0:00:10]} c5 {[%emt 0:00:41]} 7. a4 {[%emt 0:00:09] Schwarz muss nun axb5 beachten.} b4 {[%emt 0:00:48]} (7... f6 $14) 8. e3 {[%emt 0:01:07]} (8. Bf4 $16) 8... Nd7 {[%emt 0:07:57]} 9. Bd3 {[%emt 0:01:10] Weiß steht aktiver.} ({Vorzuziehen ist} 9. a5 $14) 9... Nxe5 {[%emt 0:00:00]} 10. Nxe5 {[%emt 0:00:28]} Bb7 {[%emt 0:00:00] Lässt Qf3 nicht zu} 11. O-O $40 {[%emt 0:00:37][%mdl 128] Weiss hat einigen Angriff.} (11. a5 $14 Nf6 12. Qa4+ Nd7 13. O-O) 11... Bd6 $11 {[%emt 0:00:00]} 12. Nc4 {[%emt 0:00:46]} Nf6 {[%emt 0:00:00]} 13. Nxd6+ {[%emt 0:01:22]} Qxd6 {[%emt 0:00:00]} 14. dxc5 {[%emt 0:00:24]} Qxc5 {[%emt 0:00:00]} 15. Qe2 {[%emt 0:00:09]} O-O {[%emt 0:00:00]} 16. e4 {[%emt 0:00:06]} e5 {[%emt 0:00:00]} (16... Qe7 $11) 17. Be3 {[%emt 0:00:08]} Qa5 {[%emt 0:00:00]} (17... Qd6 $142) 18. f3 $16 {[%emt 0:00:28]} Rac8 {[%emt 0:00:00]} 19. b3 {[%emt 0:00:21]} Nd7 {[%emt 0:00:00]} (19... Rfd8 $16 20. Bc4 h6) 20. Rac1 {[%emt 0:00:09]} ({Günstiger ist} 20. Rfd1 $18) 20... Nc5 {[%emt 0:00:00]} 21. Bc4 {[%emt 0:00:02] [#] Qf2 wäre nun fies.} Rfd8 $2 {[%emt 0:00:00]} (21... Ne6 {ist eine bessere Verteidigung.} 22. Bxe6 fxe6) 22. Rfd1 {[%emt 0:00:01]} Ne6 {[%emt 0:00:10]} 23. Rxd8+ {[%emt 0:00:35]} ({Weiss braucht} 23. Bxe6 $18 fxe6 24. Rxc8 Bxc8 25. Rc1) 23... Qxd8 {[%emt 0:00:13]} 24. Rd1 {[%emt 0:00:20]} (24. Bxa6 $2 Rxc1+ 25. Bxc1 Bxa6 (25... Qb6+ $2 26. Qe3 $19) 26. Qxa6 Qd4+ 27. Kf1 Qd1+ 28. Kf2 Qxc1 $19) 24... Qa5 $2 {[%emt 0:00:18] [#]} (24... Qc7 $16 25. Bxe6 (25. Bxa6 Nd4 $16) 25... fxe6) 25. Rd6 {[%emt 0:00:16]} Nc5 $2 {[%emt 0:00:01]} (25... Qc7 {war einen Versuch wert.} 26. Qd2 Rd8 27. Rxd8+ Nxd8 28. Qxb4 Ne6) 26. Bd5 $2 {[%emt 0:01:16] Das Läuferpaar ist gut.} (26. Qb2 $18 {ist viel giftiger.} Nxa4 27. bxa4) 26... g6 $2 {[%emt 0:00:05][%mdl 8192]} (26... Qc7 $16 27. Bxb7 Nxb7) 27. Bxb7 $18 {[%emt 0:00:09]} Nxb7 {[%emt 0:00:01]} 28. Bb6 {[%emt 0:00:10] Gewichteter Fehlerwert: Weiß=0.58/Schwarz=0.77.  Verlustzug:     	---       	Schwarz=1     Gewinn verpasst:   	Weiß=1     	---        Fehler:       	Weiß=5     	Schwarz=7     Ungenau:       	Weiß=1     	Schwarz=4     OK:         	Weiß=6     	Schwarz=3     Bester:       	Weiß=2     	---} 1-0

[Event "Polish University-ch Open 2024"]
[Site "Lublin"]
[Date "2024.02.23"]
[Round "3.11"]
[White "Koziorowicz, Michal"]
[Black "Adamczewski, Jedrzej"]
[Result "1-0"]
[ECO "B52"]
[WhiteElo "2324"]
[BlackElo "1917"]
[Annotator "TA"]
[PlyCount "65"]
[EventDate "2024.02.22"]
[EventType "swiss"]
[EventCountry "POL"]
[SourceTitle "playchess.com"]
[Source "ChessBase"]
[SourceQuality "1"]
[TimeControl "600+3"]

{[%evp 25,65,-10,-8,-14,-14,-16,-12,-21,-7,-21,-28,-15,-15,-23,0,-23,-25,-37,-45,-37,-39,-97,-47,-145,-159,-141,-44,-67,349,354,341,342,471,456,804,741,1145,879,841,890,29978,29978]} 1. e4 {[%emt 0:00:01]} c5 {[%emt 0:00:02]} 2. Nf3 {[%emt 0:00:01]} d6 {[%emt 0:00:01]} 3. Bb5+ {[%emt 0:00:01]} Bd7 {[%emt 0:00:07]} 4. Bxd7+ {[%emt 0:00:02]} Qxd7 {[%emt 0:00:01]} 5. O-O {[%emt 0:00:02]} Nc6 {[%emt 0:00:02]} 6. Re1 {[%emt 0:00:01]} Nf6 {[%emt 0:00:02]} 7. c3 {[%emt 0:00:00]} e6 {[%emt 0:00:56]} 8. d4 {[%emt 0:00:01]} cxd4 {[%emt 0:00:01]} 9. cxd4 {[%emt 0:00:01]} d5 {[%emt 0:00:33]} 10. e5 {[%emt 0:00:01]} Ne4 {[%emt 0:00:01]} 11. Nbd2 {[%emt 0:00:00]} Nxd2 {[%emt 0:00:37]} 12. Bxd2 {[%emt 0:00:02]} Be7 {[%emt 0:00:01]} 13. Rc1 {[%emt 0:00:00]} O-O {[%emt 0:00:10]} 14. a3 {[%emt 0:00:02]} Rfc8 {[%emt 0:00:21]} 15. Rc3 {[%emt 0:00:01]} a6 {[%emt 0:00:57]} 16. h4 {[%emt 0:00:03] Die Stellung ist ausgeglichen.} b5 {[%emt 0:02:37]} 17. Rd3 {[%emt 0:00:02]} a5 {[%emt 0:00:26]} 18. h5 {[%emt 0:00:16]} h6 {[%emt 0:00:30]} 19. Nh2 {[%emt 0:00:01]} a4 {[%emt 0:00:30]} 20. Qg4 {[%emt 0:00:03]} Kh8 {[%emt 0:01:30]} 21. Ree3 {[%emt 0:00:32]} b4 {[%emt 0:00:17]} 22. Rg3 {[%emt 0:00:02]} Rg8 {[%emt 0:00:01]} 23. Rdf3 {[%emt 0:00:06]} (23. axb4 $15 Qb7 24. Qe2) 23... Qe8 {[%emt 0:00:11]} (23... bxa3 $17 24. bxa3 f5 25. exf6 Bxf6) 24. Qf4 {[%emt 0:00:10] [#]} (24. axb4 $15 Rb8 25. Qf4) 24... bxa3 $1 $17 {[%emt 0:00:18]} ({Jedoch nicht} 24... Bg5 25. Rxg5 hxg5 26. Qg4 bxa3 27. Rxa3 $17) 25. bxa3 {[%emt 0:00:03]} Nd8 {[%emt 0:01:06]} ({Finger weg von} 25... Bg5 26. Rxg5 hxg5 27. Qg4 $17) ({Günstiger ist} 25... Rb8 $17 {Droht ...Bg5 und aus.} 26. Nf1 Rb1) 26. Rc3 {[%emt 0:00:32]} Bg5 $2 {[%emt 0:00:00][%mdl 8192] Das kostet Schwarz die Partie.} (26... Rb8 $1 $15 {bleibt weiter vorne.}) 27. Rxg5 $1 $18 {[%emt 0:00:01]} hxg5 {[%emt 0:00:00]} 28. Qxg5 {[%emt 0:00:01] h6 wäre nun fies. Schwarz hat schwache schwarze Felder} Ra7 {[%emt 0:00:00]} 29. Ng4 {[%emt 0:00:07][%cal Bh2g4,Bg4f6,Bf6g8,Bg8f6][%mdl 32]} Qe7 {[%emt 0:00:00] [#]} (29... f5 $142) 30. Nf6 $1 {[%emt 0:00:03][%mdl 512] Weiss will mit Rg3 Matt setzen.} Rb7 {[%emt 0:00:00]} (30... Qf8 31. Nxg8) 31. Nxg8 {[%emt 0:00:07]} Qxg5 {[%emt 0:00:00]} 32. Bxg5 {[%emt 0:00:02]} f6 {[%emt 0:00:09] [#]} 33. Nxf6 $1 {[%emt 0:00:02] Gewichteter Fehlerwert: Weiß=0.23 (präzise) /Schwarz=0.94.  Verlustzug:     	---       	Schwarz=1     Fehler:       	Weiß=2     	Schwarz=3     Ungenau:       	---       	Schwarz=2     OK:         	Weiß=3     	Schwarz=6     Stark:        	Weiß=1     	Schwarz=1     Brilliant:      	Weiß=1     	---} 1-0

[Event "Polish University-ch Open 2024"]
[Site "Lublin"]
[Date "2024.02.23"]
[Round "3.12"]
[White "Demianowicz, Maciej"]
[Black "Walter, Szymon"]
[Result "0-1"]
[ECO "B40"]
[WhiteElo "1972"]
[BlackElo "2305"]
[Annotator "RC"]
[PlyCount "132"]
[EventDate "2024.02.22"]
[EventType "swiss"]
[EventCountry "POL"]
[SourceTitle "playchess.com"]
[Source "ChessBase"]
[SourceQuality "1"]
[TimeControl "600+3"]

1. e4 {[%emt 0:00:00]} c5 {[%emt 0:00:03]} 2. Nf3 {[%emt 0:00:01]} e6 {[%emt 0:00:02]} 3. d4 {[%emt 0:00:08]} cxd4 {[%emt 0:00:02]} 4. Nxd4 {[%emt 0:00:01]} Nc6 {[%emt 0:00:02]} 5. Nxc6 {[%emt 0:00:08]} bxc6 {[%emt 0:00:02]} 6. Bd3 {[%emt 0:00:01]} d5 {[%emt 0:00:02]} 7. O-O {[%emt 0:00:02]} Nf6 {[%emt 0:00:04]} 8. Bg5 {[%emt 0:02:15]} Be7 {[%emt 0:00:02]} 9. exd5 {[%emt 0:00:29]} cxd5 {[%emt 0:00:11]} 10. Bb5+ {[%emt 0:00:22]} Bd7 {[%emt 0:00:05]} 11. Bxd7+ {[%emt 0:00:01]} Qxd7 {[%emt 0:00:01]} 12. c3 {[%emt 0:00:09]} Rb8 {[%emt 0:00:14]} 13. Qc2 {[%emt 0:00:07]} O-O {[%emt 0:00:05]} 14. Nd2 {[%emt 0:00:03]} Qb5 {[%emt 0:00:19]} 15. Rab1 {[%emt 0:01:02]} Rfc8 {[%emt 0:00:48]} 16. h3 {[%emt 0:00:22]} h6 {[%emt 0:00:09]} 17. Bh4 {[%emt 0:00:18]} Rb7 {[%emt 0:00:48]} 18. Rfc1 {[%emt 0:01:07]} Qb6 {[%emt 0:01:32]} 19. Bxf6 {[%emt 0:01:43]} Bxf6 {[%emt 0:00:03]} 20. Qd3 {[%emt 0:00:02]} Rbc7 {[%emt 0:00:09]} 21. Rc2 {[%emt 0:00:11]} a5 {[%emt 0:00:42]} 22. Rbc1 {[%emt 0:00:34]} a4 {[%emt 0:00:09]} 23. g3 {[%emt 0:00:46]} Rc5 {[%emt 0:00:23]} 24. h4 {[%emt 0:00:05]} e5 {[%emt 0:01:20]} 25. b4 {[%emt 0:00:29]} axb3 {[%emt 0:00:35]} 26. Nxb3 {[%emt 0:00:17]} e4 {[%emt 0:01:50]} 27. Qd2 {[%emt 0:00:15]} Rc4 {[%emt 0:00:10]} 28. Qxd5 {[%emt 0:00:16]} e3 {[%emt 0:00:01]} 29. Qf3 {[%emt 0:00:10]} exf2+ {[%emt 0:00:14]} 30. Qxf2 {[%emt 0:00:00]} Qe6 {[%emt 0:00:08]} 31. Qe2 {[%emt 0:00:04]} Re4 {[%emt 0:00:03]} 32. Qf2 {[%emt 0:00:03]} Qg4 {[%emt 0:00:03]} 33. Nd4 {[%emt 0:00:05]} Bxh4 {[%emt 0:00:12]} 34. Qf3 {[%emt 0:00:02]} Qxf3 {[%emt 0:00:31]} 35. Nxf3 {[%emt 0:00:00]} Bxg3 {[%emt 0:00:01]} 36. c4 {[%emt 0:00:01]} Rc5 {[%emt 0:00:02]} 37. Kg2 {[%emt 0:00:08]} Bc7 {[%emt 0:00:01]} 38. Nd2 {[%emt 0:00:03]} Rg4+ {[%emt 0:00:03]} 39. Kf3 {[%emt 0:00:00]} f5 {[%emt 0:00:01]} 40. Nb3 {[%emt 0:00:01]} Rc6 {[%emt 0:00:10]} 41. c5 {[%emt 0:00:00]} Kh7 {[%emt 0:00:12]} 42. Rc4 {[%emt 0:00:00]} h5 {[%emt 0:00:04]} 43. Rxg4 {[%emt 0:00:02]} hxg4+ {[%emt 0:00:03]} 44. Kg2 {[%emt 0:00:01]} Be5 {[%emt 0:00:03]} 45. Na5 {[%emt 0:00:24]} Ra6 {[%emt 0:00:02]} 46. Nb7 {[%emt 0:00:00]} Rxa2+ {[%emt 0:00:02]} 47. Kg1 {[%emt 0:00:00]} f4 {[%emt 0:00:03]} 48. c6 {[%emt 0:00:00]} Bc7 {[%emt 0:00:01]} 49. Nc5 {[%emt 0:00:00]} f3 {[%emt 0:00:03]} 50. Ne6 {[%emt 0:00:00]} Bb6+ {[%emt 0:00:02]} 51. Kf1 {[%emt 0:00:00]} Rf2+ {[%emt 0:00:06]} 52. Ke1 {[%emt 0:00:00]} Re2+ {[%emt 0:00:01]} 53. Kf1 {[%emt 0:00:00]} Rxe6 {[%emt 0:00:06]} 54. c7 {[%emt 0:00:00]} Bxc7 {[%emt 0:00:02]} 55. Rxc7 {[%emt 0:00:00]} Kg6 {[%emt 0:00:02]} 56. Rc5 {[%emt 0:00:00]} Re2 {[%emt 0:00:05]} 57. Rd5 {[%emt 0:00:00]} Kf6 {[%emt 0:00:03]} 58. Rb5 {[%emt 0:00:00]} g5 {[%emt 0:00:01]} 59. Rb8 {[%emt 0:00:18]} Rg2 {[%emt 0:00:08]} 60. Rg8 {[%emt 0:00:03]} Kf5 {[%emt 0:00:04]} 61. Rf8+ {[%emt 0:00:03]} Ke4 {[%emt 0:00:01]} 62. Rf7 {[%emt 0:00:01]} Rb2 {[%emt 0:00:03]} 63. Kg1 {[%emt 0:00:02]} g3 {[%emt 0:00:01]} 64. Re7+ {[%emt 0:00:03]} Kf4 {[%emt 0:00:01]} 65. Rf7+ {[%emt 0:00:02]} Kg4 {[%emt 0:00:01]} 66. Rf8 {[%emt 0:00:02]} Rb1# {[%emt 0:00:01]} 0-1

[Event "Polish University-ch Open 2024"]
[Site "Lublin"]
[Date "2024.02.23"]
[Round "3.13"]
[White "Lis, Mateusz"]
[Black "Suder, Jakub"]
[Result "0-1"]
[ECO "B44"]
[WhiteElo "2019"]
[BlackElo "2333"]
[Annotator "TA"]
[PlyCount "124"]
[EventDate "2024.02.22"]
[EventType "swiss"]
[EventCountry "POL"]
[SourceTitle "playchess.com"]
[Source "ChessBase"]
[SourceQuality "1"]
[TimeControl "600+3"]

{[%evp 27,124,-196,-184,-262,-258,-269,-275,-325,-287,-331,-316,-596,-578,-642,-407,-458,-240,-323,-334,-313,-310,-416,-277,-282,0,-405,-426,-444,-425,-426,-358,-340,-321,-300,-242,-240,-239,-308,-243,-275,-183,-234,-154,-179,-145,-167,-158,-153,-137,-147,-147,-225,-168,-311,-318,-390,-305,-298,-279,-537,-444,-562,-379,-493,-347,-586,-593,-579,-554,-904,-533,-797,-519,-758,-700,-652,-622,-1255,-1183,-1176,-1255,-1202,-1145,-1179,-468,-1286,-337,-5161,-5414,-29958,-29962,-29962,-29963,-29967,-29970,-29974,-29967,-29973,-29977]} 1. e4 {[%emt 0:00:02]} c5 {[%emt 0:00:01]} 2. Nf3 {[%emt 0:00:02]} e6 {[%emt 0:00:01]} 3. d4 {[%emt 0:00:04]} cxd4 {[%emt 0:00:02]} 4. Nxd4 {[%emt 0:00:02]} Nc6 {[%emt 0:00:01]} 5. Be3 {[%emt 0:00:16]} Nf6 {[%emt 0:00:02]} 6. f3 {[%emt 0:01:38]} d5 {[%emt 0:00:02]} 7. exd5 {[%emt 0:00:14] B44: Sicilian: Taimanov: 5 Nb5.} Nxd5 {[%emt 0:00:03]} 8. Nxc6 {[%emt 0:00:21]} bxc6 {[%emt 0:00:04]} 9. Bf2 {[%emt 0:00:06]} Rb8 {[%emt 0:00:28]} 10. Bc4 {[%emt 0:00:42]} Ba6 {[%emt 0:01:10]} 11. Qd3 $146 {[%emt 0:01:24]} ({Predecessor:} 11. Qd4 Qa5+ 12. Nd2 c5 13. Qe5 Bxc4 14. Qxb8+ Kd7 15. Qb7+ Ke8 16. Qc8+ Ke7 17. Bxc5+ Kf6 18. Bxf8 {1-0 Leitao Neto,A-Souza Neves,A (2127) Rio Branco IRT 2015 (6.5)}) 11... Qa5+ {[%emt 0:00:19]} 12. c3 {[%emt 0:00:09]} Bxc4 {[%emt 0:01:09]} 13. Qxc4 {[%emt 0:00:03]} Bd6 {[%emt 0:00:32]} 14. O-O $2 {[%emt 0:01:21]} (14. Nd2 $11 {and White has nothing to worry.} O-O (14... Rxb2 $2 15. Qxc6+ Ke7 16. Qxd6+ Kxd6 17. Nc4+ Kd7 18. Nxa5 $18) 15. Nb3) 14... Qc7 $19 {[%emt 0:00:01]} 15. b4 {[%emt 0:00:24]} (15. Nd2 {is a better defense.}) 15... Bxh2+ $19 {[%emt 0:00:15]} 16. Kh1 {[%emt 0:00:01]} Bf4 {[%emt 0:00:20]} 17. Na3 {[%emt 0:00:31]} O-O {[%emt 0:00:22]} 18. Nc2 {[%emt 0:00:19]} Qe5 {[%emt 0:00:12]} 19. g4 $2 {[%emt 0:01:19]} (19. Kg1) 19... Qg5 $19 {[%emt 0:00:03]} 20. Kg2 {[%emt 0:00:06]} Be5 {[%emt 0:00:38]} 21. Rh1 {[%emt 0:00:23]} Qg6 {[%emt 0:00:08]} (21... Nxc3 22. Rh5 Qf4 23. Qxf4 Bxf4 24. a4 $19) (21... Bxc3 22. Rad1 Nf4+ (22... Bxb4 $2 23. Nxb4 Nxb4 24. Qe4 $19) 23. Kg3 $19) (21... f5 $142 22. Kg1 Bxc3) 22. Ne3 {[%emt 0:00:17]} Nf4+ {[%emt 0:00:23]} (22... Bxc3 23. Nxd5 cxd5 24. Qxc3 $18) (22... Nxc3 23. Rh5 Bf6 24. Rah1) 23. Kf1 {[%emt 0:00:03]} Rfd8 {[%emt 0:00:42]} 24. Re1 {[%emt 0:00:16]} Nd3 {[%emt 0:00:09]} 25. Re2 {[%emt 0:00:03]} Nf4 {[%emt 0:00:23]} (25... Qf6 $142 26. Qe4 h6 (26... Bxc3 27. Qxh7+ Kf8 28. Nf5 $15)) 26. Re1 $1 $19 {[%emt 0:00:04]} Rd2 {[%emt 0:00:17]} 27. Nf5 {[%emt 0:00:23]} exf5 {[%emt 0:00:23]} 28. Rxe5 {[%emt 0:00:01]} Nd3 {[%emt 0:00:36]} 29. Re2 {[%emt 0:00:27]} Rxe2 {[%emt 0:00:21]} 30. Kxe2 {[%emt 0:00:02]} Nxf2 {[%emt 0:00:19]} 31. Kxf2 {[%emt 0:00:01]} fxg4 {[%emt 0:00:15]} 32. fxg4 {[%emt 0:00:02]} Rd8 {[%emt 0:00:18]} 33. Re1 {[%emt 0:00:25]} h6 {[%emt 0:00:02]} 34. Re2 {[%emt 0:00:02]} (34. Re4 $142) 34... Qd6 {[%emt 0:00:05]} 35. Qe4 {[%emt 0:00:08]} Qf6+ {[%emt 0:00:15]} 36. Qf3 {[%emt 0:00:02]} Qh4+ {[%emt 0:00:03]} 37. Kg2 {[%emt 0:00:01]} Qg5 {[%emt 0:00:16]} 38. Rf2 {[%emt 0:00:02]} Qg6 {[%emt 0:00:05]} 39. a4 {[%emt 0:00:02]} (39. Qf5 $17) 39... h5 {[%emt 0:00:03]} 40. a5 {[%emt 0:00:03]} (40. Qf5 $142) 40... Rd3 $19 {[%emt 0:00:10]} ({Weaker is} 40... Qxg4+ 41. Qxg4 hxg4 42. Rf4 $15) ({Don't take} 40... hxg4 41. Qf5 Qxf5 42. Rxf5 $19) 41. Qf4 {[%emt 0:00:02]} Qxg4+ {[%emt 0:00:39]} 42. Qxg4 {[%emt 0:00:01]} hxg4 {[%emt 0:00:01]} 43. Rc2 $2 {[%emt 0:00:02]} (43. Rf4 {was forced.}) 43... Kf8 {[%emt 0:00:04]} 44. a6 {[%emt 0:00:03]} Ke7 {[%emt 0:00:05]} 45. c4 {[%emt 0:00:01]} Kd7 {[%emt 0:00:07]} 46. b5 $2 {[%emt 0:00:01]} (46. Rf2 Rf3 47. Rd2+ Kc7 48. c5) 46... cxb5 $19 {[%emt 0:00:04]} 47. cxb5 {[%emt 0:00:01]} Rb3 {[%emt 0:00:02]} 48. Rf2 {[%emt 0:00:02]} f6 {[%emt 0:00:03]} ({Stronger than} 48... Rxb5 49. Rxf7+ Kc6 50. Rxa7 $11) 49. Rd2+ {[%emt 0:00:01]} Kc7 {[%emt 0:00:12]} 50. Re2 {[%emt 0:00:02]} Rxb5 {[%emt 0:00:05]} 51. Re7+ {[%emt 0:00:01]} Kb6 {[%emt 0:00:02]} 52. Rxg7 {[%emt 0:00:01]} f5 {[%emt 0:00:10]} 53. Rg6+ {[%emt 0:00:03]} Ka5 {[%emt 0:00:00]} 54. Rf6 {[%emt 0:00:00]} Rb6 {[%emt 0:00:06]} 55. Rxf5+ {[%emt 0:00:01]} Kxa6 {[%emt 0:00:01]} 56. Kg3 {[%emt 0:00:01]} (56. Kf1 $142 Rb3 57. Re5) 56... Rg6 $2 {[%emt 0:00:01]} (56... Rb4 57. Re5 Kb6) 57. Re5 $2 {[%emt 0:00:01]} (57. Rf1) 57... Kb6 $19 {[%emt 0:00:02]} 58. Rf5 {[%emt 0:00:42]} a5 {[%emt 0:00:00]} 59. Re5 {[%emt 0:00:00]} a4 {[%emt 0:00:04]} 60. Rd5 {[%emt 0:00:00]} Rg8 {[%emt 0:00:05]} 61. Re5 {[%emt 0:00:00]} a3 {[%emt 0:00:05]} 62. Re3 {[%emt 0:00:00]} Ra8 {[%emt 0:00:01]} 0-1